fUST/lending_fUST_20250723
["ID","MTS","AMOUNT","RATE_DAILY","PERIOD"]
[374260607,1753259444219,-460.0,0.00019452,2]
[374260609,1753259444229,-460.0,0.00019452,2]
[374260611,1753259444242,-460.0,0.00019452,2]
[374260613,1753259444253,-460.0,0.00019452,2]
[374260615,1753259444263,-460.0,0.00019452,2]
[374260617,1753259444273,-156.0624735,0.00019452,2]
[374260619,1753259444283,-460.0,0.00019452,2]
[374260621,1753259444292,-460.0,0.00019452,2]
[374260622,1753259444302,-460.0,0.00019452,2]
[374260624,1753259444313,-460.0,0.00019452,2]
[374260626,1753259444323,-460.0,0.00019452,2]
[374260628,1753259444333,-1752.26,0.00019452,2]
[374260630,1753259444343,-460.0,0.00019452,2]
[374260632,1753259444352,-460.0,0.00019452,2]
[374260634,1753259444362,-460.0,0.00019452,2]
[374260636,1753259444372,-387.07869557,0.00019452,2]
[374260638,1753259444381,-460.0,0.00019452,2]
[374260640,1753259444391,-268.01333319,0.00019452,2]
[374260642,1753259444400,-460.0,0.00019452,2]
[374260644,1753259444410,-460.0,0.00019452,2]
[374260646,1753259444419,-460.0,0.00019452,2]
[374260648,1753259444429,-460.0,0.00019452,2]
[374260650,1753259444438,-460.0,0.00019452,2]
[374260652,1753259444447,-460.0,0.00019452,2]
[374260654,1753259444457,-465.19338208,0.00019452,2]
[374260656,1753259444467,-460.0,0.00019452,2]
[374260658,1753259444477,-460.0,0.00019452,2]
[374260660,1753259444487,-460.0,0.00019452,2]
[374260662,1753259444496,-460.0,0.00019452,2]
[374260664,1753259444506,-460.0,0.00019452,2]
[374260665,1753259444515,-460.0,0.00019452,2]
[374260667,1753259444525,-460.0,0.00019452,2]
[374260669,1753259444534,-460.0,0.00019452,2]
[374260671,1753259444543,-460.0,0.00019452,2]
[374260673,1753259444553,-460.0,0.00019452,2]
[374260675,1753259444562,-460.0,0.00019452,2]
[374260677,1753259444571,-460.0,0.00019452,2]
[374260679,1753259444581,-460.0,0.00019452,2]
[374260681,1753259444590,-460.0,0.00019452,2]
[374260683,1753259444600,-460.0,0.00019452,2]
[374260685,1753259444609,-460.0,0.00019452,2]
[374260687,1753259444619,-460.0,0.00019452,2]
[374260689,1753259444629,-460.0,0.00019452,2]
[374260691,1753259444638,-460.0,0.00019452,2]
[374260693,1753259444647,-460.0,0.00019452,2]
[374260695,1753259444657,-460.0,0.00019452,2]
[374260697,1753259444666,-460.0,0.00019452,2]
[374260699,1753259444675,-460.0,0.00019452,2]
[374260701,1753259444684,-460.0,0.00019452,2]
[374260703,1753259444693,-460.0,0.00019452,2]
[374260705,1753259444703,-460.0,0.00019452,2]
[374260707,1753259444713,-460.0,0.00019452,2]
[374260709,1753259444722,-460.0,0.00019452,2]
[374260711,1753259444731,-460.0,0.00019452,2]
[374260713,1753259444740,-460.0,0.00019452,2]
[374260715,1753259444749,-460.0,0.00019452,2]
[374260717,1753259444758,-20.61705207,0.00019452,2]
[374260867,1753259446487,-449.76003224,0.00019452,2]
[374260869,1753259446497,-460.0,0.00019452,2]
[374260871,1753259446507,-460.0,0.00019452,2]
[374260873,1753259446516,-460.0,0.00019452,2]
[374260875,1753259446525,-460.0,0.00019452,2]
[374260877,1753259446535,-466.45989845,0.00019452,2]
[374260879,1753259446545,-460.0,0.00019452,2]
[374260881,1753259446554,-460.0,0.00019452,2]
[374260882,1753259446564,-1322.45,0.00019452,2]
[374260884,1753259446573,-460.0,0.00019452,2]
[374260886,1753259446583,-460.0,0.00019452,2]
[374260888,1753259446593,-460.0,0.00019452,2]
[374260891,1753259446603,-460.0,0.00019452,2]
[374260893,1753259446612,-460.0,0.00019452,2]
[374260896,1753259446621,-460.0,0.00019452,2]
[374260898,1753259446630,-481.33150969,0.00019452,2]
[374260900,1753259446639,-460.0,0.00019452,2]
[374260902,1753259446649,-460.0,0.00019452,2]
[374260904,1753259446659,-460.0,0.00019452,2]
[374260906,1753259446668,-460.0,0.00019452,2]
[374260908,1753259446677,-460.0,0.00019452,2]
[374260910,1753259446687,-460.0,0.00019452,2]
[374260912,1753259446696,-460.0,0.00019452,2]
[374260914,1753259446705,-460.0,0.00019452,2]
[374260915,1753259446714,-460.0,0.00019452,2]
[374260917,1753259446723,-460.0,0.00019452,2]
[374260919,1753259446733,-460.0,0.00019452,2]
[374260921,1753259446742,-524.78,0.00019452,2]
[374260923,1753259446751,-539.92,0.00019452,2]
[374260925,1753259446760,-460.0,0.00019452,2]
[374260927,1753259446769,-599.02740519,0.00019452,2]
[374260929,1753259446779,-2158.17,0.00019452,2]
[374260931,1753259446788,-460.0,0.00019452,2]
[374260933,1753259446797,-460.0,0.00019452,2]
[374260935,1753259446807,-460.0,0.00019452,2]
[374260937,1753259446816,-460.0,0.00019452,2]
[374260939,1753259446826,-460.0,0.00019452,2]
[374260941,1753259446834,-460.0,0.00019452,2]
[374260943,1753259446844,-460.0,0.00019452,2]
[374260945,1753259446853,-460.0,0.00019452,2]
[374260946,1753259446861,-460.0,0.00019452,2]
[374260948,1753259446870,-460.0,0.00019452,2]
[374260950,1753259446880,-460.0,0.00019452,2]
[374260952,1753259446889,-460.0,0.00019452,2]
[374260954,1753259446898,-776.7,0.00019452,2]
[374260956,1753259446908,-460.0,0.00019452,2]
[374260958,1753259446917,-460.0,0.00019452,2]
[374260960,1753259446927,-460.0,0.00019452,2]
[374260962,1753259446937,-460.0,0.00019452,2]
[374260964,1753259446946,-460.0,0.00019452,2]
[374260966,1753259446955,-460.0,0.00019452,2]
[374260968,1753259446965,-460.0,0.00019452,2]
[374260970,1753259446974,-460.0,0.00019452,2]
[374260972,1753259446986,-460.0,0.00019452,2]
[374260974,1753259446995,-460.0,0.00019452,2]
[374260976,1753259447004,-460.0,0.00019452,2]
[374260978,1753259447013,-460.0,0.00019452,2]
[374260980,1753259447022,-460.0,0.00019452,2]
[374260982,1753259447031,-1140.15,0.00019452,2]
[374260984,1753259447041,-460.0,0.00019452,2]
[374260986,1753259447051,-460.0,0.00019452,2]
[374260988,1753259447060,-248.34456655,0.00019452,2]
[374260990,1753259447069,-460.0,0.00019452,2]
[374260992,1753259447078,-460.0,0.00019452,2]
[374260994,1753259447088,-460.0,0.00019452,2]
[374260996,1753259447097,-833.23,0.00019452,2]
[374260998,1753259447106,-460.0,0.00019452,2]
[374261000,1753259447115,-460.0,0.00019452,2]
[374261002,1753259447124,-460.0,0.00019452,2]
[374261004,1753259447134,-460.0,0.00019452,2]
[374261006,1753259447143,-460.0,0.00019452,2]
[374261008,1753259447152,-460.0,0.00019452,2]
[374261010,1753259447161,-460.0,0.00019452,2]
[374261012,1753259447170,-360.88,0.00019452,2]
[374261014,1753259447180,-460.0,0.00019452,2]
[374261016,1753259447189,-460.0,0.00019452,2]
[374261018,1753259447198,-460.0,0.00019452,2]
[374261020,1753259447208,-460.0,0.00019452,2]
[374261022,1753259447217,-460.0,0.00019452,2]
[374261024,1753259447227,-460.0,0.00019452,2]
[374261026,1753259447240,-500.85938678,0.00019473,2]
[374261028,1753259447249,-502.92612429,0.00019473,2]
[374261030,1753259447258,-500.0,0.00019473,2]
[374261031,1753259447268,-201.29750141,0.00019473,2]
[374261033,1753259447277,-500.0,0.00019473,2]
[374261035,1753259447287,-500.0,0.00019473,2]
[374261037,1753259447296,-500.0,0.00019473,2]
[374261039,1753259447306,-460.0,0.00019603,2]
[374261041,1753259447316,-460.0,0.00019603,2]
[374261043,1753259447325,-460.0,0.00019603,2]
[374261045,1753259447335,-462.96743052,0.00019603,2]
[374261047,1753259447345,-460.0,0.00019603,2]
[374261049,1753259447355,-320.34679734,0.00019603,2]
[374261051,1753259447364,-460.0,0.00019603,2]
[374261053,1753259447373,-460.0,0.00019603,2]
[374261055,1753259447382,-1011.97,0.00019603,2]
[374261057,1753259447392,-460.0,0.00019603,2]
[374261059,1753259447401,-1679.94,0.00019603,2]
[374261061,1753259447410,-2391.50968081,0.00019626,2]
[374261063,1753259447420,-1326.97576048,0.00019626,2]
[374261065,1753259447429,-279.50449457,0.00019721,2]
[374261067,1753259447438,-460.0,0.00019725,2]
[374261069,1753259447448,-460.0,0.00019725,2]
[374261071,1753259447457,-460.0,0.00019725,2]
[374261073,1753259447466,-460.0,0.00019725,2]
[374261075,1753259447475,-460.0,0.00019725,2]
[374261077,1753259447485,-460.0,0.00019725,2]
[374261079,1753259447495,-500.0,0.00019725,2]
[374261081,1753259447504,-1952.82604753,0.00019725,2]
[374261083,1753259447513,-500.0,0.00019725,2]
[374261085,1753259447523,-913.34713348,0.00019725,2]
[374261108,1753259447740,10000.0,0.0001676,2]
[374261577,1753259458238,150.0,0.00016728,2]
[374261578,1753259471147,7276.0,0.0001676,2]
[374261581,1753259540401,150.0,0.00016706,2]
[374261639,1753259623996,150.0,0.00016704,2]
[374261642,1753259704825,150.0,0.00016673,2]
[374261647,1753260178766,3494.95108142,0.0001573,2]
[374261648,1753260179560,3494.95108142,0.00016017,2]
[374261649,1753260179876,3494.95108142,0.00016365,2]
[374261650,1753260180182,3494.95108142,0.0001655,2]
[374261653,1753260417520,452.893865,0.00013699,2]
[374261654,1753260442140,-150.0,0.00016994,2]
[374261655,1753260442162,-1200.0,0.00017263,2]
[374261656,1753260442183,-3494.95108143,0.00018169,2]
[374261657,1753260442206,-225.68,0.00018438,2]
[374261658,1753260442228,-3494.95108143,0.00018465,2]
[374261659,1753260442249,-300.0,0.00018777,2]
[374261660,1753260442270,-1200.0,0.00018778,2]
[374261661,1753260442291,-3494.95108143,0.0001889,2]
[374261662,1753260442311,-292.7944166,0.000189,2]
[374261663,1753260442333,-1946.82911137,0.00019012,2]
[374261664,1753260562125,-150.0,0.00017121,2]
[374261665,1753260562147,-216.12,0.00018677,2]
[374261666,1753260562166,-195.19627774,0.000189,2]
[374261667,1753260562186,-1548.12197006,0.00019012,2]
[374261668,1753260562207,-23.12029802,0.00019177,2]
[374261682,1753260632384,-3494.95108143,0.00018877,2]
[374261683,1753260632395,-2530.62908811,0.00019116,2]
[374261684,1753260632410,-293.57572004,0.00019116,2]
[374261685,1753260632452,-670.74627328,0.00019116,2]
[374261686,1753260632462,-300.0,0.00019177,2]
[374261687,1753260632474,-462.4016199,0.00019178,2]
[374261688,1753260632484,-460.0,0.00019178,2]
[374261689,1753260632495,-460.0,0.00019178,2]
[374261690,1753260632506,-460.0,0.00019178,2]
[374261691,1753260632517,-460.0,0.00019178,2]
[374261693,1753260632529,-460.0,0.00019178,2]
[374261695,1753260632540,-460.0,0.00019178,2]
[374261697,1753260632550,-500.0,0.00019178,2]
[374261698,1753260632565,-500.0,0.00019178,2]
[374261699,1753260632577,-184.74,0.00019178,2]
[374261700,1753260632587,-460.0,0.00019178,2]
[374261701,1753260632599,-460.0,0.00019178,2]
[374261702,1753260632610,-460.0,0.00019178,2]
[374261703,1753260632621,-460.0,0.00019178,2]
[374261704,1753260632632,-777.7,0.00019178,2]
[374261705,1753260632643,-460.0,0.00019178,2]
[374261706,1753260632654,-59.58572246,0.00019178,2]
[374261707,1753260632668,-400.41427754,0.00019178,2]
[374261708,1753260632679,-460.0,0.00019178,2]
[374261709,1753260632690,-460.0,0.00019178,2]
[374261710,1753260632700,-207.72619667,0.00019178,2]
[374261711,1753260632714,-252.27380333,0.00019178,2]
[374261712,1753260632724,-460.0,0.00019178,2]
[374261713,1753260632735,-460.0,0.00019178,2]
[374261714,1753260632746,-460.0,0.00019178,2]
[374261715,1753260632757,-454.12860719,0.00019178,2]
[374261716,1753260632768,-460.0,0.00019178,2]
[374261717,1753260632779,-460.0,0.00019178,2]
[374261718,1753260632790,-460.0,0.00019178,2]
[374261719,1753260632801,-460.0,0.00019178,2]
[374261720,1753260632812,-460.0,0.00019178,2]
[374261721,1753260632823,-460.0,0.00019178,2]
[374261722,1753260632834,-1219.44,0.00019178,2]
[374261723,1753260632845,-460.0,0.00019178,2]
[374261724,1753260632856,-460.0,0.00019178,2]
[374261725,1753260632867,-460.0,0.00019178,2]
[374261726,1753260632878,-460.0,0.00019178,2]
[374261727,1753260632889,-367.02209441,0.00019178,2]
[374261728,1753260632901,-556.0,0.00019178,2]
[374261729,1753260632912,-460.0,0.00019178,2]
[374261730,1753260632922,-460.0,0.00019178,2]
[374261731,1753260632933,-460.0,0.00019178,2]
[374261732,1753260632943,-460.0,0.00019178,2]
[374261733,1753260632954,-460.0,0.00019178,2]
[374261734,1753260632965,-1829.6,0.00019178,2]
[374261735,1753260632975,-460.0,0.00019178,2]
[374261736,1753260632985,-460.0,0.00019178,2]
[374261737,1753260632996,-460.0,0.00019178,2]
[374261738,1753260633007,-460.0,0.00019178,2]
[374261739,1753260633018,-460.0,0.00019178,2]
[374261740,1753260633029,-460.0,0.00019178,2]
[374261741,1753260633040,-460.0,0.00019178,2]
[374261742,1753260633052,-460.0,0.00019178,2]
[374261743,1753260633063,-460.0,0.00019178,2]
[374261744,1753260633075,-460.0,0.00019178,2]
[374261745,1753260633087,-460.0,0.00019178,2]
[374261746,1753260633098,-460.0,0.00019178,2]
[374261747,1753260633109,-3282.15,0.00019178,2]
[374261748,1753260633120,-460.0,0.00019178,2]
[374261749,1753260633130,-460.0,0.00019178,2]
[374261750,1753260633140,-460.0,0.00019178,2]
[374261751,1753260633150,-403.69593256,0.00019178,2]
[374261752,1753260633163,-51.96406744,0.00019178,2]
[374261753,1753260633174,-377.17593256,0.00019178,2]
[374261754,1753260633186,-87.12473521,0.00019178,2]
[374261755,1753260633415,-460.0,0.00019178,2]
[374261756,1753260633430,-152.66547186,0.00019178,2]
[374261757,1753260633783,-307.33452814,0.00019178,2]
[374261758,1753260633793,-460.0,0.00019178,2]
[374261759,1753260633802,-460.0,0.00019178,2]
[374261760,1753260633812,-513.91,0.00019178,2]
[374261761,1753260633821,-460.0,0.00019178,2]
[374261762,1753260633830,-460.0,0.00019178,2]
[374261763,1753260633839,-460.0,0.00019178,2]
[374261764,1753260633849,-460.0,0.00019178,2]
[374261765,1753260633857,-98.46486153,0.00019178,2]
[374261766,1753260634145,1095.38,0.00023,30]
[374261793,1753260638465,-465.69513847,0.00019178,2]
[374261795,1753260638475,-201.89289667,0.00019178,2]
[374261801,1753260638519,-258.10710333,0.00019178,2]
[374261803,1753260638528,-460.0,0.00019178,2]
[374261805,1753260638538,-460.0,0.00019178,2]
[374261807,1753260638547,-460.0,0.00019178,2]
[374261809,1753260638559,-460.0,0.00019178,2]
[374261811,1753260638569,-215.84488467,0.00019178,2]
[374261813,1753260638581,-1295.07722816,0.00019178,2]
[374261815,1753260638593,-1110.64788717,0.00019178,2]
[374261817,1753260638603,-460.0,0.00019178,2]
[374261819,1753260638613,-460.0,0.00019178,2]
[374261821,1753260638622,-460.0,0.00019178,2]
[374261823,1753260638632,-460.0,0.00019178,2]
[374261825,1753260638641,-460.0,0.00019178,2]
[374261827,1753260638651,-460.0,0.00019178,2]
[374261829,1753260638661,-460.0,0.00019178,2]
[374261831,1753260638670,-1643.25,0.00019178,2]
[374261833,1753260638680,-460.0,0.00019178,2]
[374261835,1753260638689,-460.0,0.00019178,2]
[374261837,1753260638698,-460.0,0.00019178,2]
[374261839,1753260638708,-1352.51,0.00019178,2]
[374261841,1753260638717,-460.0,0.00019178,2]
[374261843,1753260638727,-460.0,0.00019178,2]
[374261845,1753260638736,-1446.52,0.00019178,2]
[374261847,1753260638746,-460.0,0.00019178,2]
[374261849,1753260638756,-460.0,0.00019178,2]
[374261851,1753260638766,-489.77,0.00019178,2]
[374261853,1753260638776,-460.0,0.00019178,2]
[374261855,1753260638785,-460.0,0.00019178,2]
[374261857,1753260638795,-644.71,0.00019178,2]
[374261859,1753260638804,-460.0,0.00019178,2]
[374261861,1753260638814,-460.0,0.00019178,2]
[374261863,1753260638823,-460.0,0.00019178,2]
[374261865,1753260638833,-460.0,0.00019178,2]
[374261867,1753260638842,-460.0,0.00019178,2]
[374261869,1753260638852,-1378.09211285,0.00019178,2]
[374261872,1753260638869,-28.28788715,0.00019178,2]
[374261874,1753260638878,-202.0,0.00019178,2]
[374261875,1753260638887,-460.0,0.00019178,2]
[374261877,1753260638897,-460.0,0.00019178,2]
[374261880,1753260638907,-460.0,0.00019178,2]
[374261881,1753260638916,-460.0,0.00019178,2]
[374261883,1753260638926,-460.0,0.00019178,2]
[374261885,1753260638935,-1061.1,0.00019178,2]
[374261887,1753260638945,-460.0,0.00019178,2]
[374261890,1753260638955,-460.0,0.00019178,2]
[374261892,1753260638964,-460.0,0.00019178,2]
[374261894,1753260638973,-460.0,0.00019178,2]
[374261896,1753260638983,-740.5,0.00019178,2]
[374261898,1753260638992,-1928.69,0.00019178,2]
[374261899,1753260639001,-460.0,0.00019178,2]
[374261901,1753260639010,-460.0,0.00019178,2]
[374261903,1753260639020,-460.0,0.00019178,2]
[374261905,1753260639029,-460.0,0.00019178,2]
[374261907,1753260639039,-460.0,0.00019178,2]
[374261909,1753260639048,-460.0,0.00019178,2]
[374261911,1753260639058,-471.12,0.00019178,2]
[374261913,1753260639068,-2139.67,0.00019178,2]
[374261916,1753260639078,-460.0,0.00019178,2]
[374261918,1753260639087,-460.0,0.00019178,2]
[374261920,1753260639096,-460.0,0.00019178,2]
[374261921,1753260639106,-460.0,0.00019178,2]
[374261924,1753260639115,-460.0,0.00019178,2]
[374261926,1753260639124,-460.0,0.00019178,2]
[374261928,1753260639134,-460.0,0.00019178,2]
[374261930,1753260639144,-460.0,0.00019178,2]
[374261931,1753260639153,-460.0,0.00019178,2]
[374261933,1753260639163,-460.0,0.00019178,2]
[374261935,1753260639173,-4820.06,0.00019178,2]
[374261937,1753260639182,-460.0,0.00019178,2]
[374261940,1753260639191,-460.0,0.00019178,2]
[374261942,1753260639201,-460.0,0.00019178,2]
[374261944,1753260639210,-460.0,0.00019178,2]
[374261945,1753260639219,-460.0,0.00019178,2]
[374261947,1753260639228,-460.0,0.00019178,2]
[374261950,1753260639238,-3475.4,0.00019178,2]
[374261952,1753260639247,-460.0,0.00019178,2]
[374261954,1753260639257,-460.0,0.00019178,2]
[374261956,1753260639267,-460.0,0.00019178,2]
[374261958,1753260639276,-460.0,0.00019178,2]
[374261960,1753260639285,-778.92,0.00019178,2]
[374261962,1753260639295,-492.5,0.00019178,2]
[374261964,1753260639304,-505.1378997,0.00019178,2]
[374261966,1753260639315,-401.84,0.0001919,3]
[374261968,1753260639325,-200.92,0.0001919,3]
[374261970,1753260639334,-602.78,0.0001919,3]
[374261972,1753260639343,-125318.1691214,0.000192,3]
[374261974,1753260639352,-214.67886746,0.000192,3]
[374261976,1753260639361,-12622.36869388,0.000192,3]
[374261978,1753260639370,-179.9069,0.000192,3]
[374261980,1753260639380,-159.346112,0.000192,3]
[374261982,1753260639389,-476.696448,0.000192,3]
[374261984,1753260639398,-3494.95108143,0.00019243,2]
[374261986,1753260639407,-460.0,0.00019328,2]
[374261988,1753260639416,-460.0,0.00019328,2]
[374261990,1753260639425,-460.0,0.00019328,2]
[374261992,1753260639434,-386.86954409,0.00019328,2]
[374261994,1753260639443,-180.0,0.00019328,2]
[374261996,1753260639453,-460.0,0.00019328,2]
[374261998,1753260639462,-460.0,0.00019328,2]
[374262000,1753260639471,-460.0,0.00019328,2]
[374262002,1753260639482,-460.0,0.00019328,2]
[374262004,1753260639491,-460.0,0.00019328,2]
[374262006,1753260639501,-460.0,0.00019328,2]
[374262008,1753260639510,-460.0,0.00019328,2]
[374262010,1753260639520,-460.0,0.00019328,2]
[374262012,1753260639529,-460.0,0.00019328,2]
[374262014,1753260639540,-460.0,0.00019328,2]
[374262016,1753260639549,-460.0,0.00019328,2]
[374262018,1753260639562,-463.31154415,0.00019328,2]
[374262019,1753260639571,-460.0,0.00019328,2]
[374262021,1753260639581,-460.0,0.00019328,2]
[374262023,1753260639591,-460.0,0.00019328,2]
[374262025,1753260639601,-460.0,0.00019328,2]
[374262027,1753260639611,-460.0,0.00019328,2]
[374262029,1753260639620,-460.0,0.00019328,2]
[374262031,1753260639629,-460.0,0.00019328,2]
[374262033,1753260639641,-460.0,0.00019328,2]
[374262035,1753260639652,-532.99586021,0.00019328,2]
[374262037,1753260639662,-460.0,0.00019328,2]
[374262039,1753260639671,-460.0,0.00019328,2]
[374262041,1753260639681,-460.0,0.00019328,2]
[374262043,1753260639690,-460.0,0.00019328,2]
[374262045,1753260639702,-460.0,0.00019328,2]
[374262047,1753260639711,-460.0,0.00019329,2]
[374262049,1753260639720,-460.0,0.00019329,2]
[374262051,1753260639730,-460.0,0.00019329,2]
[374262053,1753260639739,-337.94554705,0.00019329,2]
[374262055,1753260639748,-460.0,0.00019329,2]
[374262057,1753260639758,-460.0,0.00019329,2]
[374262059,1753260639767,-479.21620065,0.00019329,2]
[374262061,1753260639777,-460.0,0.00019329,2]
[374262063,1753260639786,-460.0,0.00019329,2]
[374262065,1753260639795,-460.0,0.00019329,2]
[374262067,1753260639804,-460.0,0.00019329,2]
[374262069,1753260639814,-460.0,0.00019329,2]
[374262071,1753260639823,-460.0,0.00019329,2]
[374262073,1753260639832,-460.0,0.00019329,2]
[374262075,1753260639842,-460.0,0.00019329,2]
[374262077,1753260639851,-460.0,0.00019329,2]
[374262079,1753260639860,-460.0,0.00019329,2]
[374262081,1753260639870,-460.0,0.00019329,2]
[374262083,1753260639880,-460.0,0.00019329,2]
[374262085,1753260639889,-460.0,0.00019329,2]
[374262087,1753260639899,-460.0,0.00019329,2]
[374262089,1753260639908,-460.0,0.00019329,2]
[374262091,1753260639917,-460.0,0.00019329,2]
[374262094,1753260639927,-3985.84946799,0.0001935,2]
[374262096,1753260639937,-1463.48791484,0.0001935,2]
[374262098,1753260639946,-500.0,0.00019449,2]
[374262100,1753260639956,-500.0,0.00019449,2]
[374262102,1753260639966,-500.0,0.00019449,2]
[374262104,1753260639976,-500.0,0.00019449,2]
[374262106,1753260639985,-500.0,0.00019449,2]
[374262108,1753260639994,-463.4957683,0.00019449,2]
[374262110,1753260640004,-500.0,0.00019449,2]
[374262111,1753260640013,-1063.59,0.00019451,2]
[374262113,1753260640023,-460.0,0.00019451,2]
[374262115,1753260640032,-6914.50337148,0.00019452,2]
[374262117,1753260640042,-460.0,0.00019452,2]
[374262119,1753260640051,-460.0,0.00019452,2]
[374262121,1753260640062,-460.0,0.00019452,2]
[374262123,1753260640072,-460.0,0.00019452,2]
[374262125,1753260640081,-460.0,0.00019452,2]
[374262127,1753260640091,-460.0,0.00019452,2]
[374262129,1753260640100,-460.0,0.00019452,2]
[374262131,1753260640109,-777.7,0.00019452,2]
[374262133,1753260640119,-460.0,0.00019452,2]
[374262136,1753260640128,-460.0,0.00019452,2]
[374262138,1753260640138,-460.0,0.00019452,2]
[374262140,1753260640147,-467.85262096,0.00019452,2]
[374262142,1753260640157,-460.0,0.00019452,2]
[374262144,1753260640166,-460.0,0.00019452,2]
[374262146,1753260640175,-460.0,0.00019452,2]
[374262148,1753260640186,-460.0,0.00019452,2]
[374262150,1753260640195,-460.0,0.00019452,2]
[374262152,1753260640204,-460.0,0.00019452,2]
[374262154,1753260640214,-1219.44,0.00019452,2]
[374262156,1753260640223,-460.0,0.00019452,2]
[374262158,1753260640232,-460.0,0.00019452,2]
[374262160,1753260640242,-460.0,0.00019452,2]
[374262163,1753260640252,-556.0,0.00019452,2]
[374262164,1753260640261,-460.0,0.00019452,2]
[374262166,1753260640270,-460.0,0.00019452,2]
[374262168,1753260640280,-460.0,0.00019452,2]
[374262170,1753260640289,-460.0,0.00019452,2]
[374262172,1753260640298,-1829.6,0.00019452,2]
[374262174,1753260640307,-460.0,0.00019452,2]
[374262177,1753260640318,-460.0,0.00019452,2]
[374262178,1753260640327,-460.0,0.00019452,2]
[374262181,1753260640337,-460.0,0.00019452,2]
[374262183,1753260640346,-460.0,0.00019452,2]
[374262185,1753260640356,-460.0,0.00019452,2]
[374262187,1753260640366,-468.47166745,0.00019452,2]
[374262189,1753260640375,-460.0,0.00019452,2]
[374262191,1753260640385,-460.0,0.00019452,2]
[374262193,1753260640394,-460.0,0.00019452,2]
[374262194,1753260640403,-460.0,0.00019452,2]
[374262196,1753260640413,-3282.15,0.00019452,2]
[374262198,1753260640423,-152.2344095,0.00019452,2]
[374262200,1753260640432,-460.0,0.00019452,2]
[374262202,1753260640441,-460.0,0.00019452,2]
[374262204,1753260640451,-460.0,0.00019452,2]
[374262206,1753260640460,-460.0,0.00019452,2]
[374262208,1753260640469,-460.0,0.00019452,2]
[374262210,1753260640479,-460.0,0.00019452,2]
[374262212,1753260640489,-460.0,0.00019452,2]
[374262214,1753260640499,-460.0,0.00019452,2]
[374262216,1753260640509,-296.02191902,0.00019452,2]
[374262218,1753260640518,-460.0,0.00019452,2]
[374262220,1753260640527,-564.16,0.00019452,2]
[374262222,1753260640536,-460.0,0.00019452,2]
[374262224,1753260640545,-401.97,0.00019452,2]
[374262242,1753260640688,-460.0,0.00019452,2]
[374262244,1753260640698,-460.0,0.00019452,2]
[374262246,1753260640708,-460.0,0.00019452,2]
[374262249,1753260640718,-2621.57,0.00019452,2]
[374262251,1753260640728,-460.0,0.00019452,2]
[374262253,1753260640738,-460.0,0.00019452,2]
[374262255,1753260640747,-460.0,0.00019452,2]
[374262257,1753260640760,-173.56660763,0.00019452,2]
[374262259,1753260640774,-460.0,0.00019452,2]
[374262261,1753260640783,-496.81264047,0.00019452,2]